bitfinex/quotes_ETHUSD_20220118
["timestamp","ask_amount","ask_price","bid_price","bid_amount"]
[1642517503471,0.804222,3110.1,3109.0,1.67576911]
[1642517503670,0.04548799,3109.9,3109.4,0.00511581]
[1642517503922,0.1285,3110.0,3109.4,0.00511581]
[1642517503923,0.4285,3110.0,3109.4,0.00511581]
[1642517504117,0.1285,3110.0,3109.4,0.00511581]
[1642517504318,0.1285,3110.0,3109.4,0.88256109]
[1642517504716,0.8042484,3109.7,3109.5,0.00454739]
[1642517504918,0.1285,3110.2,3109.5,0.00454739]
[1642517505118,0.4285,3110.3,3109.5,0.00454739]
[1642517505318,0.1285,3110.3,3109.5,0.00454739]
[1642517505522,0.1285,3110.3,3109.5,0.88199267]
[1642517505719,0.8040783,3110.0,3109.5,0.88199267]
[1642517505920,0.04681541,3109.8,3109.6,0.00397896]
[1642517506119,0.04585002,3109.9,3109.6,0.00397896]
[1642517506519,0.3,3109.9,3109.6,0.88142424]
[1642517506919,0.3,3109.9,3109.7,0.00341054]
[1642517507120,4.0785,3109.8,3109.7,0.00341054]
[1642517507321,4.9516,3109.8,3109.7,0.00341054]
[1642517507768,0.8043825,3109.6,3108.9,0.87744528]
[1642517507969,0.1285,3109.5,3109.0,0.00397896]
[1642517508273,6.25,3109.0,3107.7,3.96613071]
[1642517508473,0.012059,3108.7,3107.7,3.96613071]
[1642517508671,0.53631585,3108.6,3107.8,0.00682109]
[1642517508869,0.53631585,3108.6,3108.3,1.63043504]
[1642517508870,18.8,3108.5,3108.3,1.63043504]
[1642517509072,18.8,3108.5,3108.0,1.6896001]
[1642517509073,3.4785,3108.4,3108.0,1.6896001]
[1642517509272,18.8,3108.3,3108.0,1.6896001]
[1642517509473,0.1285,3108.2,3107.8,3.26087009]
[1642517509677,0.1287,3108.3,3107.8,3.26087009]
[1642517509876,0.3,3108.4,3107.9,0.00625266]
[1642517510074,1.7374236,3108.6,3107.9,0.00625266]
[1642517510274,0.8044198,3108.5,3107.9,0.00625266]
[1642517510473,0.84218268,3108.5,3107.9,0.00625266]
[1642517510676,0.84218268,3108.5,3108.4,1.77265268]
[1642517510883,4.8274802,3109.3,3108.4,1.77265268]
[1642517510884,0.1285,3109.0,3108.4,1.77265268]
[1642517511074,3.99358702,3109.3,3108.4,0.00341054]
[1642517511075,0.1285,3109.2,3108.4,0.00341054]
[1642517511276,0.804452,3108.8,3108.5,0.00284212]
[1642517511551,0.80461,3108.6,3107.7,0.00738951]
[1642517511739,0.17460247,3108.5,3107.7,0.00738951]
[1642517511937,0.1285,3108.5,3107.7,0.00738951]
[1642517512138,0.03857447,3108.7,3108.4,1.21308083]
[1642517512339,0.03044275,3109.0,3108.4,1.21308083]
[1642517512538,0.27753678,3109.2,3108.5,0.00284212]
[1642517512838,0.03867235,3109.0,3108.5,0.00284212]
[1642517513139,0.1285,3109.1,3108.5,0.00284212]
[1642517513338,0.932897,3109.1,3108.5,0.00284212]
[1642517513540,1.96583935,3109.1,3108.5,0.00284212]
[1642517513737,1.96583935,3109.1,3108.1,0.00511581]
[1642517513939,0.80453,3108.9,3108.1,0.00511581]
[1642517514138,0.1285,3108.8,3108.1,0.00511581]
[1642517514337,0.1285,3108.8,3108.2,1.48773105]
[1642517514738,0.1285,3108.8,3108.3,0.00397897]
[1642517514938,0.15892331,3108.8,3108.3,0.00397897]
[1642517515176,0.1285,3108.8,3108.3,0.00397897]
[1642517515376,0.6,3108.9,3108.3,0.00397897]
[1642517515877,0.3,3108.9,3108.3,0.00397897]
[1642517516079,0.3,3108.9,3108.8,2.1310261]
[1642517516278,0.03190954,3108.8,3108.3,0.00397897]
[1642517516477,0.11063034,3108.6,3107.6,1.7153079]
[1642517516777,0.6,3108.9,3107.7,0.00738951]
[1642517516778,0.9330356,3108.8,3107.7,0.00738951]
[1642517516975,0.97284538,3108.8,3107.7,0.00738951]
[1642517517179,0.16830978,3108.8,3107.7,0.00738951]
[1642517517374,0.1285,3108.8,3108.4,2.17941119]
[1642517517776,0.63014465,3108.9,3108.5,1.44227235]
[1642517517975,0.3,3108.9,3108.5,1.44227235]
[1642517518178,0.3,3108.9,3108.6,0.0022737]
[1642517518377,0.4285,3109.0,3108.6,0.0022737]
[1642517518579,0.1285,3109.1,3108.6,0.0022737]
[1642517519417,0.96705768,3109.1,3108.6,0.0022737]
[1642517519618,0.06470611,3109.0,3108.6,0.0022737]
[1642517519818,0.1285,3108.9,3108.5,0.00284212]
[1642517520020,5.52417646,3109.0,3108.5,0.00284212]
[1642517520223,18.8,3108.9,3108.5,0.00284212]
[1642517520420,0.80462,3108.7,3108.5,0.00284212]
[1642517520621,22.7785,3108.6,3108.5,0.00284212]
[1642517520820,4.36916988,3108.6,3108.5,0.00284212]
[1642517521020,4.66916988,3108.6,3108.5,0.00284212]
[1642517521422,4.66916988,3108.6,3108.0,0.00568424]
[1642517521920,23.46916988,3108.6,3108.0,0.00568424]
[1642517522120,1.15160699,3108.6,3108.0,0.00568424]
[1642517522321,1.11916988,3108.6,3108.0,0.00568424]
[1642517522521,0.51916988,3108.6,3108.1,1.27821478]
[1642517522773,0.39066988,3108.6,3108.1,1.27821478]
[1642517522972,0.32116868,3108.6,3108.2,0.00454739]
[1642517523974,0.32116868,3108.6,3108.3,0.1285]
[1642517524373,0.00113684,3109.2,3108.4,0.00341054]
[1642517524774,0.20231464,3109.1,3108.4,0.00341054]
[1642517524975,0.20231464,3109.1,3108.2,0.00454739]
[1642517525275,0.20231464,3109.1,3107.6,1.5868079]
[1642517525276,0.03246959,3107.9,3107.6,1.5868079]
[1642517525775,1.72358419,3108.0,3107.6,1.5868079]
[1642517526174,1.59488419,3108.0,3107.7,1.36227243]
[1642517526431,1.29488419,3108.0,3107.7,1.36227243]
[1642517526631,0.99488419,3108.0,3107.8,0.00170528]
[1642517527825,0.99488419,3108.0,3107.8,1.00170528]
[1642517528024,1.29488419,3108.0,3107.8,1.00170528]
[1642517528225,1.29488419,3108.0,3107.9,4.75113685]
[1642517529429,1.29488419,3108.0,3107.9,0.00113685]
[1642517530175,1.29488419,3108.0,3107.9,5.55113685]
[1642517530369,0.99488419,3108.0,3107.9,5.55113685]
[1642517530570,0.00511581,3109.0,3108.8,1.24386766]
[1642517530968,5.2854,3109.6,3108.8,1.24386766]
[1642517530969,5.4139,3109.6,3108.8,1.24386766]
[1642517531169,3.75524678,3109.5,3108.3,0.1285]
[1642517531372,0.06307638,3109.2,3108.3,0.1285]
[1642517531674,0.02695156,3108.5,3107.9,0.00113685]
[1642517531869,0.1285,3108.4,3107.9,0.00113685]
[1642517532068,0.13020527,3108.4,3107.7,0.0022737]
[1642517532269,0.00113684,3108.3,3107.7,0.0022737]
[1642517532569,1.74153966,3108.8,3107.7,0.0022737]
[1642517532772,0.0124002,3108.1,3107.7,0.0022737]
[1642517533069,0.3,3107.8,3107.6,1.3318816]
[1642517533268,18.9287,3107.7,3107.6,1.3318816]
[1642517533470,18.8392011,3107.6,3106.7,3.9573]
[1642517533672,0.1287,3107.5,3106.7,3.9573]
[1642517533923,0.80489,3107.4,3106.8,0.00511581]
[1642517534122,0.9335871,3107.3,3106.8,0.00511581]
[1642517534328,0.97178732,3107.3,3106.8,0.00511581]
[1642517534525,0.6,3107.2,3106.8,0.00511581]
[1642517534728,0.1287,3107.1,3106.5,0.00682108]
[1642517535325,0.1287,3107.1,3106.7,1.26405176]
[1642517535525,0.6360904,3107.2,3106.7,1.26405176]
[1642517535526,0.3360904,3107.2,3106.7,1.26405176]
[1642517535823,0.3360904,3107.2,3106.7,2.06869176]
[1642517535824,0.3,3107.2,3106.7,2.06869176]
[1642517536023,0.1287,3107.8,3106.7,2.06869176]
[1642517536322,0.1287,3107.9,3106.8,0.00593489]
[1642517536524,0.1287,3107.9,3107.4,1.72122685]
[1642517536723,0.00170527,3108.0,3107.4,1.72122685]
[1642517536929,0.00170527,3108.0,3107.5,0.12983685]
[1642517537124,0.00113685,3107.9,3107.5,0.00113685]
[1642517537691,0.8045658,3108.2,3107.5,0.00113685]
[1642517537883,0.8045658,3108.2,3106.6,4.9984]
[1642517538082,0.49514636,3108.1,3106.7,1.5676]
[1642517538281,0.43211055,3108.1,3106.9,0.00341054]
[1642517538479,0.43211055,3108.1,3106.7,2.5676]
[1642517538480,0.00284212,3108.0,3106.7,0.06362312]
[1642517538681,0.00625266,3108.0,3106.9,1.38850045]
[1642517538909,0.4287,3108.1,3106.9,1.38850045]
[1642517538910,0.8046879,3107.8,3106.9,1.38850045]
[1642517539079,1.13673751,3107.8,3106.9,1.38850045]
[1642517539281,0.00454739,3107.7,3106.9,1.38850045]
[1642517539484,0.00454739,3107.7,3107.6,2.06105418]
[1642517539682,0.33204961,3107.8,3107.6,2.06105418]
[1642517539884,0.25,3107.8,3107.6,2.06105418]
[1642517540081,0.03575608,3108.1,3107.6,2.06105418]
[1642517540284,0.36766246,3108.1,3107.6,2.06105418]
[1642517540483,0.1287,3108.6,3107.6,2.06105418]
[1642517540484,0.00625266,3108.0,3107.7,0.03354863]
[1642517540683,0.00625266,3108.0,3107.8,1.46864675]
[1642517540684,0.37391512,3108.0,3107.8,1.46864675]
[1642517540884,0.00568424,3107.9,3107.6,2.86547418]
[1642517541083,0.3733467,3107.9,3107.6,2.86547418]
[1642517541284,0.00511581,3107.8,3107.6,2.06105418]
[1642517541519,0.37277827,3107.8,3107.6,2.06105418]
[1642517541719,0.00454739,3107.7,3107.6,2.06105418]
[1642517541918,0.37220985,3107.7,3107.6,4.17982826]
[1642517542124,0.67220985,3107.7,3107.6,3.37542826]
[1642517542320,0.30454739,3107.7,3107.6,3.37542826]
[1642517542621,0.30454739,3107.7,3107.2,3.8742]
[1642517543020,0.30454739,3107.7,3106.6,2.201]
[1642517543021,0.00397897,3107.6,3106.8,0.80462]
[1642517543420,0.00341054,3107.5,3107.4,2.26776016]
[1642517544020,0.00341054,3107.5,3106.7,1.0]
[1642517544223,0.00341054,3107.5,3106.9,0.13710975]
[1642517544421,0.00284212,3107.4,3106.9,0.13710975]
[1642517544620,0.1287,3107.3,3106.9,0.13710975]
[1642517544821,0.1309737,3107.3,3106.9,0.13710975]
[1642517545019,0.80651997,3107.2,3106.9,0.13710975]
[1642517545274,1.27479074,3107.2,3106.9,0.13710975]
[1642517545472,0.00113685,3107.1,3106.5,0.13710975]
[1642517545672,0.1287,3107.0,3106.5,0.13710975]
[1642517545872,0.1287,3107.0,3106.6,0.00170527]
[1642517546071,0.804836,3106.9,3106.6,0.00170527]
[1642517546271,0.3,3106.8,3106.6,0.00170527]
[1642517546474,0.6,3106.8,3106.6,0.00170527]
[1642517547171,0.83833338,3106.9,3106.6,0.00170527]
[1642517548572,0.3,3106.8,3106.6,0.00170527]
[1642517549423,0.30113685,3107.1,3106.7,2.17661853]
[1642517549620,0.30113685,3107.1,3106.6,0.80637527]
[1642517549621,0.00113685,3107.1,3106.6,0.80637527]
[1642517550024,0.00113685,3107.1,3106.7,0.00113684]
[1642517550822,0.1287,3107.0,3106.4,1.9675693]
[1642517551020,0.1287,3107.0,3106.5,0.00227369]
[1642517551222,0.00113685,3107.1,3106.7,0.13710975]
[1642517551423,0.00113685,3107.1,3106.7,1.66101512]
[1642517551623,0.13819997,3108.1,3106.9,6.25]
[1642517551823,0.13819997,3108.1,3107.0,0.385]
[1642517552023,0.00511581,3108.0,3107.2,0.80437]
[1642517552322,0.1287,3108.5,3107.9,6.2215242]
[1642517552525,5.26833272,3108.8,3107.9,6.2215242]
[1642517552526,0.1285,3108.6,3107.9,6.2215242]
[1642517552770,0.00511581,3108.0,3107.9,8.7715242]
[1642517552971,0.00511581,3108.0,3107.9,9.9608342]
[1642517553169,0.00909478,3108.7,3107.9,9.9608342]
[1642517553371,2.59888976,3108.4,3108.1,0.80422]
[1642517553573,2.59888976,3108.4,3107.9,3.05]
[1642517553770,0.00682108,3108.3,3107.9,3.05]
[1642517554170,0.00625266,3108.2,3107.9,3.05]
[1642517554373,0.00625266,3108.2,3107.2,3.7805]
[1642517554374,0.0078,3108.0,3107.2,3.7805]
[1642517554575,0.8045258,3107.9,3107.2,3.7805]
[1642517554871,0.00397896,3107.8,3107.1,1.62614834]
[1642517555074,2.21324806,3107.8,3107.1,1.62614834]
[1642517555271,0.00341054,3107.7,3107.1,1.62614834]
[1642517555485,0.13211054,3107.7,3107.1,1.62614834]
[1642517555673,0.00284212,3107.6,3107.1,1.62614834]
[1642517556073,0.1287,3107.7,3106.8,0.80633527]
[1642517556074,0.00227369,3107.5,3106.8,0.80633527]
[1642517556274,0.8046292,3107.4,3106.8,0.80633527]
[1642517556525,0.3,3107.3,3106.9,0.00113685]
[1642517556726,0.00113685,3107.3,3106.9,0.00113685]
[1642517557530,2.06569425,3107.2,3106.9,0.00113685]
[1642517557926,2.79439425,3107.2,3106.7,0.00227369]
[1642517558126,2.79439425,3107.2,3106.5,0.00341054]
[1642517558728,0.03756769,3107.1,3106.5,0.00341054]
[1642517558924,0.1287,3107.0,3106.5,0.00341054]
[1642517559124,0.1287,3107.1,3106.5,0.00341054]
[1642517559325,2.70331688,3107.2,3106.5,0.00341054]
[1642517559526,0.1287,3107.1,3106.5,0.00341054]
[1642517559725,2.70331688,3107.2,3106.5,0.00341054]
[1642517559928,2.83201688,3107.2,3106.3,0.00454739]
[1642517560171,0.8047844,3106.9,3106.3,0.00454739]
[1642517560377,0.8372242,3106.9,3106.3,0.00454739]
[1642517560572,0.6,3106.8,3106.3,0.80927739]
[1642517560773,0.6,3106.8,3106.3,4.04475573]
[1642517560774,0.3,3106.8,3106.3,4.04475573]
[1642517560972,0.3,3106.8,3106.4,0.00397896]
[1642517561372,0.8046896,3106.9,3106.4,0.80870896]
[1642517561577,0.3,3106.8,3106.4,0.80870896]
[1642517561773,0.3,3106.8,3106.5,0.00341054]
[1642517562273,0.3,3106.8,3106.5,2.41745054]
[1642517562472,1.14205926,3107.2,3106.5,2.41745054]
[1642517562674,0.33738026,3107.2,3106.6,0.00284212]
[1642517562877,0.3,3107.2,3106.6,0.00284212]
[1642517563076,0.00113685,3107.3,3106.7,2.09322415]
[1642517563274,0.30113685,3107.3,3107.2,4.05]
[1642517563675,0.00113685,3107.3,3106.8,0.00170527]
[1642517564121,0.00113685,3107.3,3106.7,0.00227369]
[1642517564321,0.00113685,3107.3,3106.9,1.79830985]
[1642517565126,0.00113685,3107.3,3106.9,5.72775604]
[1642517565323,3.87989997,3108.6,3107.0,6.635]
[1642517565324,0.1287,3108.2,3107.0,6.635]
[1642517565526,2.88064494,3108.5,3107.1,6.25]
[1642517565722,0.00284211,3107.8,3107.4,0.80428]
[1642517565922,0.00284211,3107.8,3107.4,1.18928]
[1642517566223,0.00227369,3107.7,3107.5,1.11760556]
[1642517566424,0.00227369,3107.7,3107.6,6.3787]
[1642517566625,0.13819997,3108.6,3107.6,8.28706936]
[1642517566823,0.13819997,3108.6,3107.9,0.80433]
[1642517567122,0.00682108,3108.5,3107.9,0.80433]
[1642517567322,0.00682108,3108.5,3108.0,0.8043]
[1642517567525,0.00625266,3108.4,3108.0,0.8043]
[1642517567977,0.00568423,3108.3,3108.1,0.80427]
[1642517568182,3.71370927,3109.1,3108.3,6.25]
[1642517568183,0.1285,3109.1,3108.3,6.25]
[1642517568479,1.56696973,3109.3,3108.5,0.80415]
[1642517568681,1.90660328,3109.1,3108.6,1.78668406]
[1642517568977,1.90660328,3109.1,3108.6,0.385]
[1642517569177,2.71079318,3109.1,3108.6,0.385]
[1642517569382,2.71079318,3109.1,3107.8,0.5135]
[1642517569383,2.74815823,3109.1,3107.8,0.5135]
[1642517569578,1.15948692,3109.0,3107.4,5.2731]
[1642517569779,2.68436533,3109.0,3107.9,0.00227369]
[1642517569977,2.68436533,3109.0,3107.8,1.62614834]
[1642517569978,0.00341054,3108.9,3107.8,1.62614834]
[1642517570177,0.8044573,3108.5,3107.9,0.00227369]
[1642517570378,0.84376208,3108.5,3107.9,0.00227369]
[1642517571629,0.84376208,3108.5,3107.9,0.80427]
[1642517571828,0.03930478,3108.5,3107.9,0.80427]
[1642517572028,0.3,3108.7,3108.3,1.89809908]
[1642517572430,0.3,3108.7,3108.4,0.1285]
[1642517572431,0.00170527,3108.6,3108.4,0.1285]
[1642517572828,0.00113685,3108.5,3108.4,0.1285]
[1642517573228,0.00113685,3108.5,3108.4,0.26559888]
[1642517573628,0.00113685,3108.5,3108.4,6.38709888]
[1642517573829,3.685e-05,3108.5,3108.4,6.38709888]
[1642517574030,3.685e-05,3108.5,3108.4,10.41454295]
[1642517574230,3.685e-05,3108.5,3108.4,6.77209888]
[1642517574629,3.685e-05,3108.5,3108.4,6.90059888]
[1642517576467,3.685e-05,3108.5,3108.4,6.77209888]
[1642517577574,3.685e-05,3108.5,3108.4,0.13709888]
[1642517578169,0.12853685,3108.5,3108.4,0.13709888]
[1642517578371,3.685e-05,3108.5,3108.4,0.13709888]
[1642517578675,0.72853685,3108.5,3108.4,0.13709888]
[1642517579520,0.72853685,3108.5,3108.1,0.1285]
[1642517579721,0.72853685,3108.5,3108.0,0.00170527]
[1642517579919,0.72853685,3108.5,3108.2,0.00166842]
[1642517580119,0.72853685,3108.5,3107.8,0.00394212]
[1642517580319,0.8044008,3108.3,3107.8,0.00394212]
[1642517580519,0.33459725,3108.3,3107.8,0.00394212]
[1642517580721,0.3,3108.3,3107.8,1.61242212]
[1642517580920,0.3,3108.3,3107.9,1.18931]
[1642517581120,2.53345581,3108.4,3108.1,1.46166659]
[1642517581322,2.53345581,3108.4,3108.2,0.5135]
[1642517581522,2.53345581,3108.4,3108.2,0.51516842]
[1642517581719,0.03061436,3108.5,3108.3,0.0011]
[1642517581921,3.685e-05,3108.5,3108.4,6.635]
[1642517582688,0.1285,3109.4,3108.6,0.01800935]
[1642517582874,0.03806885,3109.5,3108.6,4.18753454]
[1642517583074,2.50761223,3109.3,3109.1,1.29179692]
[1642517583276,2.50761223,3109.3,3109.2,7.24802735]
[1642517583474,2.50306484,3109.3,3109.2,7.24802735]
[1642517583877,0.03030601,3109.4,3109.2,7.24802735]
[1642517584075,9.82674826,3109.8,3109.2,7.24802735]
[1642517584277,8.25977853,3109.8,3109.2,7.24802735]
[1642517584477,0.00682108,3109.7,3109.2,7.24802735]
[1642517584876,0.00625266,3109.6,3109.2,5.25]
[1642517585277,0.00568423,3109.5,3109.2,5.25]
[1642517585676,0.00511581,3109.4,3109.2,5.25]
[1642517586077,2.8066668,3109.6,3109.2,7.37909411]
[1642517586078,0.00454739,3109.3,3109.2,7.37909411]
[1642517586529,0.00454739,3109.3,3108.9,1.60794]
[1642517586719,0.04140488,3109.2,3108.9,0.385]
[1642517586918,0.00397896,3109.2,3108.9,0.385]
[1642517587119,0.00341054,3109.1,3108.9,0.385]
[1642517587321,0.00341054,3109.1,3108.2,4.11590184]
[1642517587322,0.00341054,3109.1,3108.3,0.1296]
[1642517587521,1.7548696,3108.9,3108.3,0.0011]
[1642517587722,0.8043472,3108.8,3108.3,0.0011]
[1642517587919,0.8043472,3108.8,3107.9,1.75483434]
[1642517587920,0.05841776,3108.6,3108.1,0.00227369]
[1642517588120,0.02974092,3108.4,3108.0,0.00284212]
[1642517588319,0.1285,3108.3,3108.0,0.00284212]
[1642517588521,0.1285,3108.6,3108.0,0.00284212]
[1642517588920,0.84335936,3108.3,3108.0,0.00284212]
[1642517589123,1.27185936,3108.3,3108.0,0.00284212]
[1642517589319,0.03191797,3108.2,3108.0,0.00284212]
[1642517589520,1.57185936,3108.3,3108.0,0.00284212]
[1642517590484,0.33887956,3108.3,3108.0,0.00284212]
[1642517590686,0.00113685,3108.7,3108.1,0.1285]
[1642517591086,0.00113685,3108.7,3108.2,0.00170527]
[1642517591285,2.88407019,3109.1,3108.4,1.27432778]
[1642517591487,0.03124717,3109.3,3109.1,5.55]
[1642517591692,0.03124717,3109.3,3109.1,5.6785]
[1642517591886,2.8557355,3109.3,3109.1,5.55]
[1642517592687,0.03873101,3109.4,3109.2,7.36150275]
[1642517592886,2.3504546,3109.7,3109.2,7.36150275]
[1642517593086,0.00341054,3109.3,3109.2,8.16542275]
[1642517593287,1.054e-05,3109.3,3109.2,8.16542275]
[1642517593489,0.1285,3110.1,3109.4,6.25]
[1642517593690,0.1285,3110.1,3109.5,1.385]
[1642517593926,0.00170527,3109.6,3109.5,1.385]
[1642517594126,0.00170527,3109.6,3109.5,2.18869]
[1642517594330,0.1285,3110.1,3109.5,2.18869]
[1642517594526,0.1285,3110.1,3110.0,9.60067944]
[1642517594928,7.42,3110.6,3110.1,6.25]
[1642517595132,7.42,3110.6,3110.2,1.14332393]
[1642517595328,2.3504546,3111.0,3110.3,0.385]
[1642517595529,2.3504546,3111.0,3110.4,18.94459355]
[1642517595727,0.0073895,3110.9,3110.4,0.1283]
[1642517595927,0.0073895,3110.9,3110.8,7.79000492]
[1642517596126,2.38730217,3111.5,3110.8,7.79000492]
[1642517596127,2.38730217,3111.5,3110.8,7.3785]
[1642517596527,0.01023162,3111.4,3110.8,6.3785]
[1642517596727,0.01023162,3111.4,3110.7,0.2538]
[1642517596930,1.98677324,3111.1,3110.7,0.2538]
[1642517597126,1.98677324,3111.1,3110.7,1.60681]
[1642517597331,0.00795793,3111.0,3110.7,1.60681]
[1642517597773,0.0073895,3110.9,3109.9,4.0388]
[1642517597972,0.1358895,3110.9,3109.9,4.0388]
[1642517598174,0.36538464,3110.2,3109.9,4.0388]
[1642517598374,0.36538464,3110.2,3109.9,0.1285]
[1642517598574,0.36822675,3110.1,3109.9,0.1285]
[1642517598975,0.36765833,3110.0,3109.9,0.1285]
[1642517599176,0.36765833,3110.0,3109.8,2.13532805]
[1642517599373,5.833e-05,3110.0,3109.9,8.58840987]
[1642517599577,0.3,3110.1,3109.9,8.58840987]
[1642517599775,2.13104609,3110.8,3109.9,8.58840987]
[1642517599776,2.13104609,3110.8,3110.0,18.8]
[1642517599975,2.13104609,3110.8,3110.3,2.32017001]
[1642517600173,0.00397897,3110.7,3110.3,2.32017001]
[1642517600374,0.00397897,3110.7,3110.3,0.8035]
[1642517600573,0.00341054,3110.6,3110.1,3.9907]
[1642517600973,5.43408075,3111.5,3110.1,3.9907]
[1642517600974,0.00284212,3110.5,3110.1,3.9907]
[1642517601443,0.0022737,3110.4,3110.1,3.9907]
[1642517601634,1.88050132,3110.4,3109.7,1.60734]
[1642517601838,0.13020527,3110.3,3108.9,3.9338]
[1642517602035,0.02530561,3110.2,3109.8,0.00113685]
[1642517602239,0.02530561,3110.2,3108.9,3.8053]
[1642517602240,0.02237876,3110.0,3109.1,0.00511581]
[1642517602536,0.1285,3109.9,3109.1,0.00511581]
[1642517602736,0.1285,3110.0,3109.1,1.24779972]
[1642517603135,0.1285,3110.0,3109.2,0.00454739]
[1642517603536,0.385,3109.9,3109.2,0.00454739]
[1642517603735,0.685,3109.9,3109.2,0.00454739]
[1642517603935,0.685,3109.9,3109.1,0.00511581]
[1642517604536,2.14247351,3109.8,3109.1,1.39059141]
[1642517604742,0.985,3109.9,3109.1,2.19449141]
[1642517604743,0.6,3109.9,3109.1,2.19449141]
[1642517604938,0.53822224,3110.7,3109.3,4.56844091]
[1642517605181,24.0745,3111.5,3109.4,0.01244007]
[1642517605182,0.385,3110.3,3109.4,0.01244007]
[1642517605383,0.385,3110.3,3109.4,0.01698746]
[1642517605679,0.385,3110.3,3109.5,0.00397897]
[1642517606080,0.1285,3110.0,3109.5,0.00397897]
[1642517606278,1.96713215,3109.1,3109.0,0.128648]
[1642517606478,0.3,3109.1,3109.0,0.128648]
[1642517606876,0.385,3109.5,3109.0,0.128648]
[1642517607077,0.335,3109.5,3109.0,0.128648]
[1642517607283,0.335,3109.5,3109.1,0.00227369]
[1642517607284,0.635,3109.5,3109.1,0.00227369]
[1642517607481,0.1285,3109.4,3109.1,0.00227369]
[1642517607678,0.04188099,3109.3,3109.1,0.00227369]
[1642517607877,0.635,3109.5,3109.1,0.00227369]
[1642517607878,0.1285,3109.2,3109.1,0.00227369]
[1642517608078,0.1285,3109.4,3109.1,0.00227369]
[1642517608925,0.3,3109.5,3109.1,0.00227369]
[1642517609126,0.0022737,3109.9,3108.7,3.82829184]
[1642517609127,0.0022737,3109.9,3108.8,1.61177896]
[1642517609528,0.00170527,3109.8,3109.0,0.80392]
[1642517609938,0.00113685,3109.7,3109.0,0.80392]
[1642517610231,7.42,3110.5,3108.9,0.00341054]
[1642517610232,2.3504546,3110.6,3109.4,0.03884232]
[1642517610429,2.3504546,3110.6,3109.5,1.6073]
[1642517610628,0.00227369,3110.1,3109.5,1.60843685]
[1642517610828,0.00227369,3110.1,3109.5,2.60843685]
[1642517611031,1.68504909,3109.7,3109.6,0.93215]
[1642517611331,1.68504909,3109.7,3109.5,0.00113685]
[1642517611531,1.98504909,3109.7,3109.5,0.00113685]
[1642517611732,0.1285,3109.6,3109.3,0.00227369]
[1642517611929,1.98504909,3109.7,3108.7,3.729832]
[1642517611930,1.98504909,3109.7,3108.8,0.00511581]
[1642517612129,0.3,3109.7,3108.8,0.00511581]
[1642517612329,0.385,3109.6,3108.8,0.00511581]
[1642517612532,0.1285,3109.5,3108.8,0.00511581]
[1642517612780,0.5135,3109.5,3108.8,0.00511581]
[1642517613380,0.02555116,3109.3,3108.8,0.00511581]
[1642517613581,2.33670631,3108.9,3108.8,0.00511581]
[1642517614087,0.3,3108.9,3108.8,0.00511581]
[1642517614481,0.4285,3109.3,3108.8,0.00511581]
[1642517615482,2.00606117,3109.0,3108.8,0.00511581]
[1642517615783,2.30606117,3109.0,3108.5,0.00682108]
[1642517616184,2.95,3108.8,3107.5,0.1285]
[1642517616424,0.15279506,3108.7,3107.4,3.7723]
[1642517616624,0.15279506,3108.7,3107.0,4.07827157]
[1642517616625,1.64537372,3107.7,3107.6,0.00511581]
[1642517616832,1.64537372,3107.7,3107.0,3.26087009]
[1642517617033,0.04850553,3107.5,3107.0,3.26087009]
[1642517617230,0.1287,3107.6,3107.3,0.00170527]
[1642517617231,0.5137,3107.4,3107.3,0.00170527]
[1642517617428,0.5137,3107.4,3106.7,0.128714]
[1642517617429,0.03271032,3107.3,3106.8,2.93922251]
[1642517617629,0.5137,3107.4,3106.8,2.93922251]
[1642517617630,1.85094516,3107.1,3106.8,2.93922251]
[1642517617826,0.1287,3107.0,3106.9,0.0022737]
[1642517620294,0.685,3107.2,3106.9,0.0022737]
[1642517621491,0.27639994,3108.0,3106.9,0.1309737]
[1642517621691,0.13819997,3108.0,3106.9,0.1309737]
[1642517621892,0.00341054,3107.9,3107.0,0.00170527]
[1642517622191,0.00284211,3107.8,3107.1,0.1287]
[1642517622392,0.00284211,3107.8,3107.5,1.26027657]
[1642517622592,0.00227369,3107.7,3107.5,1.26027657]
[1642517622796,0.00227369,3107.7,3107.6,6.3787]
[1642517623092,4.9774,3108.9,3107.6,6.3787]
[1642517623292,5.3624,3108.9,3107.6,0.1287]
[1642517623495,0.00568423,3108.3,3107.6,0.1287]
[1642517623694,0.1287,3108.2,3107.6,0.1287]
[1642517623927,0.385,3108.1,3107.6,0.1287]
[1642517624130,0.38954739,3108.1,3107.6,0.1287]
[1642517624331,1.87801027,3108.0,3107.6,0.1287]
[1642517624531,2.47801027,3108.0,3107.6,0.1287]
[1642517624733,2.47801027,3108.0,3107.0,0.00170527]
[1642517624734,0.51711054,3107.9,3107.0,0.00170527]
[1642517624932,0.04224873,3107.8,3107.0,0.00170527]
[1642517625130,0.5137,3107.7,3107.0,0.00170527]
[1642517625333,0.02750069,3107.6,3107.0,0.00170527]
[1642517625535,0.87892866,3107.4,3107.0,0.00170527]
[1642517625832,0.8049485,3107.0,3106.2,1.63196817]
[1642517626032,0.80497,3106.8,3106.2,1.63196817]
[1642517626233,3.3,3106.6,3105.8,2.54527558]
[1642517626434,0.01221086,3106.4,3105.8,2.54527558]
[1642517626632,2.56871094,3106.3,3105.8,2.54527558]
[1642517626834,1.61028,3106.0,3105.4,2.43860355]
[1642517627033,0.5137,3105.9,3105.4,2.43860355]
[1642517627231,0.5137,3105.9,3105.3,0.007]
[1642517627232,2.45,3105.7,3104.8,0.007]
[1642517627431,0.21704594,3105.6,3104.8,0.007]
[1642517627672,0.21704594,3105.6,3104.9,0.00341055]
[1642517627877,0.1288,3105.6,3104.9,0.00341055]
[1642517628476,0.80526,3105.5,3104.9,0.00341055]
[1642517628674,0.04264037,3105.4,3104.9,0.00341055]
[1642517628876,0.34264037,3105.4,3104.9,0.00341055]
[1642517629075,0.00170527,3105.8,3104.9,0.00341055]
[1642517629479,0.80616684,3105.7,3105.3,2.13462813]
[1642517629678,0.00113684,3105.7,3105.3,2.26342813]
[1642517629877,0.1288,3107.2,3105.4,6.26283497]
[1642517630077,3.8029,3107.8,3105.5,4.83034444]
[1642517630078,1.60933,3107.6,3105.5,4.83034444]
[1642517630277,0.00568424,3106.7,3105.5,5.30264793]
[1642517630484,0.00568424,3106.7,3105.8,1.60918]
[1642517630678,0.12378536,3107.7,3105.5,5.29078591]
[1642517630679,0.00511581,3106.6,3105.9,4.0209]
[1642517631075,0.13598222,3107.7,3105.9,4.0209]
[1642517631076,0.00454739,3106.5,3105.9,4.0209]